[Event "CZE-ch Open 2019"]
[Site "Ostrava"]
[Date "2019.04.28"]
[Round "2.34"]
[White "Belunek, Vladimir"]
[Black "Vorisek, Jakub"]
[Result "1-0"]
[ECO "D02"]
[WhiteElo "2201"]
[BlackElo "1991"]
[Annotator "NA"]
[PlyCount "135"]
[EventDate "2019.04.27"]
[EventType "swiss"]
[EventCountry "CZE"]
[SourceTitle "playchess.com"]
[Source "ChessBase"]
[SourceQuality "1"]
[TimeControl "40/5400+30:1800+30"]

1. d4 {[%emt 0:00:00]} d5 {[%emt 0:00:00]} 2. Nf3 {[%emt 0:00:00]} e6 {[%emt 0:01:19]} 3. Bf4 {[%emt 0:01:58]} Bd6 {[%emt 0:02:21]} 4. Bg3 {[%emt 0:01:57]} c5 {[%emt 0:02:02]} 5. e3 {[%emt 0:01:02]} Nc6 {[%emt 0:02:41]} 6. c3 {[%emt 0:01:08] D02: 1 d4 d5 2 Nf3 sidelines, including 2...Nf6 3 g3 and 2...Nf6 3 Bf4} Nge7 {[%emt 0:01:13]} 7. Bd3 {[%emt 0:02:51]} O-O {[%emt 0:01:51]} (7... h6 8. dxc5 Bxc5 9. Nbd2 O-O 10. O-O Nf5 11. Bxf5 exf5 12. Nb3 Bb6 13. Qd3 {1-0 (52) Carlsen,M (2832)-Topalov,V (2749) Paris 2017}) 8. Nbd2 {[%emt 0:03:32]} c4 {[%emt 0:06:33]} 9. Bc2 {[%emt 0:01:30]} f5 $146 {[%emt 0:00:40]} ({Predecessor:} 9... h6 10. b3 b5 11. a4 Bxg3 12. hxg3 {0-1 (39) Kostelidou,D (1143)-Chatzipanagiotou,A (1137) Porto Rio 2016}) 10. b4 {[%emt 0:27:46]} b5 {[%emt 0:12:46]} 11. a4 {[%emt 0:00:16]} bxa4 {[%emt 0:00:33]} 12. Bxa4 {[%emt 0:01:05]} Qc7 {[%emt 0:02:17]} 13. O-O {[%emt 0:06:31]} Bd7 {[%emt 0:08:00]} 14. b5 {[%emt 0:18:46]} Nb8 {[%emt 0:06:18]} 15. Ne5 {[%emt 0:03:11]} Be8 {[%emt 0:02:13]} 16. Qb1 {[%emt 0:08:59]} ({White should try} 16. Qf3 $16) 16... Nd7 {[%emt 0:04:10]} 17. Ndf3 {[%emt 0:01:52]} Ng6 {[%emt 0:06:32]} 18. Ng5 {[%emt 0:06:08]} Rf6 {[%emt 0:00:54]} 19. Nxd7 {[%emt 0:00:46]} Bxd7 {[%emt 0:04:06]} 20. b6 {[%emt 0:00:33]} axb6 {[%emt 0:01:30]} 21. Bxd7 {[%emt 0:00:07]} Rxa1 {[%emt 0:00:12]} 22. Bxe6+ {[%emt 0:00:46]} Rxe6 {[%emt 0:00:06]} 23. Qxa1 {[%emt 0:00:39]} Re8 {[%emt 0:00:29]} 24. Qa4 {[%emt 0:00:43]} Rc8 {[%emt 0:07:14]} 25. Rb1 {[%emt 0:00:55]} Bxg3 {[%emt 0:05:02]} 26. hxg3 {[%emt 0:00:07]} h6 {[%emt 0:00:34]} 27. Nf3 {[%emt 0:01:34]} Qd6 {[%emt 0:02:14]} 28. Qa7 {[%emt 0:02:11]} Rb8 {[%emt 0:02:39]} 29. Rb5 {[%emt 0:00:11]} Kh7 {[%emt 0:00:27]} 30. Qf7 {[%emt 0:03:49]} Ne7 {[%emt 0:00:50]} 31. Ne5 {[%emt 0:00:13]} Rd8 {[%emt 0:04:24]} 32. Kh2 {[%emt 0:01:05]} Qf6 {[%emt 0:01:16]} 33. Qxf6 {[%emt 0:01:17]} gxf6 {[%emt 0:00:02]} 34. Nf3 {[%emt 0:01:02]} Rd6 {[%emt 0:04:40]} 35. Ng1 {[%emt 0:00:30]} Nc8 {[%emt 0:00:53]} 36. Ne2 {[%emt 0:00:10]} Na7 {[%emt 0:00:27]} 37. Rb1 {[%emt 0:00:05]} b5 {[%emt 0:01:36]} 38. Nf4 {[%emt 0:00:30]} Kg7 {[%emt 0:00:42]} 39. Kh3 {[%emt 0:00:26]} Kf7 {[%emt 0:02:42]} 40. Ra1 {[%emt 0:01:31]} Nc8 {[%emt 0:04:32]} 41. Ra8 {[%emt 0:31:20]} Nb6 {[%emt 0:30:35]} 42. Ra6 {[%emt 0:00:00]} Nc8 {[%emt 0:00:00]} 43. Ra5 {[%emt 0:00:00]} b4 {[%emt 0:00:00]} 44. cxb4 {[%emt 0:00:00]} Nb6 {[%emt 0:00:00]} 45. Ra7+ {[%emt 0:00:00]} Ke8 {[%emt 0:00:00]} 46. Ne2 {[%emt 0:00:00]} Rc6 {[%emt 0:00:00]} 47. Nc3 {[%emt 0:00:00]} Nc8 {[%emt 0:00:00]} 48. Ra8 {[%emt 0:00:00]} Kd7 {[%emt 0:00:00]} 49. Ra5 {[%emt 0:00:00]} Nb6 {[%emt 0:00:00]} 50. g4 {[%emt 0:00:00]} Ke6 {[%emt 0:00:00]} 51. Kg3 {[%emt 0:00:00]} fxg4 {[%emt 0:00:00]} 52. Kxg4 {[%emt 0:00:00]} Rd6 {[%emt 0:00:00]} 53. Kf4 {[%emt 0:00:00]} Nd7 {[%emt 0:00:00]} 54. f3 {[%emt 0:00:00]} Nb8 {[%emt 0:00:00]} 55. b5 {[%emt 0:00:00]} Nd7 {[%emt 0:00:00]} 56. Ra8 {[%emt 0:00:00]} Nb6 {[%emt 0:00:00]} 57. Re8+ {[%emt 0:00:00]} Kf7 {[%emt 0:00:00]} 58. Rb8 {[%emt 0:00:00]} Nd7 {[%emt 0:00:00]} 59. Rh8 {[%emt 0:00:00]} Nf8 {[%emt 0:00:00]} 60. Rxh6 {[%emt 0:00:00]} Ne6+ {[%emt 0:00:00]} 61. Kg3 {[%emt 0:00:00]} f5 {[%emt 0:00:00]} 62. Kf2 {[%emt 0:00:00]} Kg7 {[%emt 0:00:00]} 63. Rh1 {[%emt 0:00:10]} Nc7 {[%emt 0:00:00]} 64. Ra1 {[%emt 0:00:11]} Kf6 {[%emt 0:00:09]} 65. Ra7 {[%emt 0:00:24]} Ne6 {[%emt 0:00:11]} 66. Ke2 {[%emt 0:00:46]} f4 {[%emt 0:01:04]} 67. Kd2 {[%emt 0:02:50]} Ng7 {[%emt 0:00:46]} 68. e4 $18 {[%emt 0:00:16]} 1-0

[Event "CZE-ch Open 2019"]
[Site "Ostrava"]
[Date "2019.04.29"]
[Round "3.4"]
[White "Rubes, Jan"]
[Black "Stocek, Jiri"]
[Result "1/2-1/2"]
[ECO "B66"]
[WhiteElo "2345"]
[BlackElo "2563"]
[Annotator "RC"]
[PlyCount "96"]
[EventDate "2019.04.27"]
[EventType "swiss"]
[EventCountry "CZE"]
[SourceTitle "playchess.com"]
[Source "ChessBase"]
[SourceQuality "1"]
[TimeControl "40/5400+30:1800+30"]

1. e4 {[%emt 0:00:00]} c5 {[%emt 0:10:03]} 2. Nf3 {[%emt 0:00:00]} d6 {[%emt 0:00:15]} 3. d4 {[%emt 0:00:00]} cxd4 {[%emt 0:00:06]} 4. Nxd4 {[%emt 0:00:04]} Nf6 {[%emt 0:00:08]} 5. Nc3 {[%emt 0:00:07]} Nc6 {[%emt 0:00:47]} 6. Bg5 {[%emt 0:00:19]} e6 {[%emt 0:00:32]} 7. Qd2 {[%emt 0:00:12]} a6 {[%emt 0:00:38]} 8. O-O-O {[%emt 0:00:20]} Be7 {[%emt 0:01:26]} 9. h4 {[%emt 0:00:18]} Nxd4 {[%emt 0:08:44]} 10. Qxd4 {[%emt 0:00:06]} h6 {[%emt 0:02:18]} 11. Bxf6 {[%emt 0:12:34]} Bxf6 {[%emt 0:00:47]} 12. Qxd6 {[%emt 0:00:29]} Qxd6 {[%emt 0:01:43]} 13. Rxd6 {[%emt 0:00:02]} Bd7 {[%emt 0:07:24]} 14. f4 {[%emt 0:05:54]} g5 {[%emt 0:03:30]} 15. hxg5 {[%emt 0:27:59]} hxg5 {[%emt 0:00:48]} 16. Rxh8+ {[%emt 0:01:20]} Bxh8 {[%emt 0:00:05]} 17. g3 {[%emt 0:02:44]} Bg7 {[%emt 0:08:56]} 18. e5 {[%emt 0:02:36]} Bc6 {[%emt 0:08:47]} 19. b4 {[%emt 0:14:24]} gxf4 {[%emt 0:06:14]} 20. gxf4 {[%emt 0:00:04]} Bh6 {[%emt 0:00:53]} 21. Rd4 {[%emt 0:03:33]} Rd8 {[%emt 0:08:34]} 22. Rc4 {[%emt 0:01:03]} Bf3 {[%emt 0:16:07]} 23. a4 {[%emt 0:00:53]} b5 {[%emt 0:00:51]} 24. axb5 {[%emt 0:01:05]} axb5 {[%emt 0:00:05]} 25. Rc5 {[%emt 0:00:10]} Bxf4+ {[%emt 0:02:19]} 26. Kb2 {[%emt 0:00:12]} Be3 {[%emt 0:01:18]} 27. Bxb5+ {[%emt 0:06:30]} Kf8 {[%emt 0:00:08]} 28. Rc4 {[%emt 0:00:57]} Bd4 {[%emt 0:01:58]} 29. Bc6 {[%emt 0:02:07]} Bxc6 {[%emt 0:01:01]} 30. Rxc6 {[%emt 0:00:04]} Bxe5 {[%emt 0:00:05]} 31. Kb3 {[%emt 0:00:23]} Ke7 {[%emt 0:00:38]} 32. Ne4 {[%emt 0:05:51]} Rd1 {[%emt 0:01:54]} 33. Nc5 {[%emt 0:05:15]} Bd6 {[%emt 0:00:35]} 34. c4 {[%emt 0:03:00]} f5 {[%emt 0:01:17]} 35. Nxe6 {[%emt 0:02:59]} Kxe6 {[%emt 0:00:56]} 36. c5 {[%emt 0:00:05]} f4 {[%emt 0:00:26]} 37. cxd6 {[%emt 0:00:08]} f3 {[%emt 0:01:21]} 38. d7+ {[%emt 0:03:42]} Ke5 {[%emt 0:01:56]} 39. Rc1 {[%emt 0:00:36]} Rxd7 {[%emt 0:00:10]} 40. b5 {[%emt 0:00:03]} f2 {[%emt 0:01:52]} 41. Rf1 {[%emt 0:05:54]} Rf7 {[%emt 0:00:19]} 42. Kc4 {[%emt 0:00:19]} Ke4 {[%emt 0:00:07]} 43. b6 {[%emt 0:00:27]} Ke3 {[%emt 0:00:06]} 44. Kc5 {[%emt 0:00:15]} Ke2 {[%emt 0:01:20]} 45. Rxf2+ {[%emt 0:00:04]} Kxf2 {[%emt 0:00:02]} 46. Kc6 {[%emt 0:00:07]} Ke3 {[%emt 0:00:01]} 47. b7 {[%emt 0:00:07]} Rxb7 {[%emt 0:00:02]} 48. Kxb7 Kd4 1/2-1/2

[Event "CZE-ch Open 2019"]
[Site "Ostrava"]
[Date "2019.04.29"]
[Round "3.8"]
[White "Svanda, Ondrej"]
[Black "Kraus, Tomas"]
[Result "0-1"]
[ECO "C41"]
[WhiteElo "2309"]
[BlackElo "2456"]
[Annotator "RC"]
[PlyCount "56"]
[EventDate "2019.04.27"]
[EventType "swiss"]
[EventCountry "CZE"]
[SourceTitle "playchess.com"]
[Source "ChessBase"]
[SourceQuality "1"]
[TimeControl "40/5400+30:1800+30"]

1. e4 {[%emt 0:00:00]} d6 {[%emt 0:00:00]} 2. d4 {[%emt 0:00:00]} Nf6 {[%emt 0:00:10]} 3. Nc3 {[%emt 0:01:11]} e5 {[%emt 0:00:12]} 4. Nf3 {[%emt 0:01:16]} Nbd7 {[%emt 0:00:12]} 5. Bc4 {[%emt 0:02:30]} Be7 {[%emt 0:00:06]} 6. O-O {[%emt 0:00:06]} O-O {[%emt 0:00:03]} 7. Qe2 {[%emt 0:03:46]} c6 {[%emt 0:04:24]} 8. a4 {[%emt 0:00:17]} exd4 {[%emt 0:00:31]} 9. Nxd4 {[%emt 0:00:41]} Re8 {[%emt 0:00:04]} 10. Re1 {[%emt 0:16:59]} d5 {[%emt 0:06:56]} 11. Ba2 {[%emt 0:05:49]} Bb4 {[%emt 0:04:20]} 12. Bd2 {[%emt 0:05:54]} Nxe4 {[%emt 0:08:36]} 13. Nb1 {[%emt 0:18:55]} Bc5 {[%emt 0:07:24]} 14. Be3 {[%emt 0:01:58]} Ndf6 {[%emt 0:02:19]} 15. c3 {[%emt 0:02:58]} Ng4 {[%emt 0:06:00]} 16. h3 {[%emt 0:05:31]} Nexf2 {[%emt 0:16:16]} 17. hxg4 {[%emt 0:04:05]} Nxg4 {[%emt 0:00:06]} 18. Qd2 {[%emt 0:03:13]} Qh4 {[%emt 0:06:26]} 19. Na3 {[%emt 0:01:32]} Qh2+ {[%emt 0:00:52]} 20. Kf1 {[%emt 0:00:47]} Rxe3 {[%emt 0:04:20]} 21. Rxe3 {[%emt 0:01:37]} Qf4+ {[%emt 0:07:30]} 22. Kg1 {[%emt 0:00:05]} Qh2+ {[%emt 0:00:04]} 23. Kf1 {[%emt 0:00:05]} Qh1+ {[%emt 0:00:30]} 24. Ke2 {[%emt 0:00:04]} Qxg2+ {[%emt 0:00:11]} 25. Kd3 {[%emt 0:04:44]} Nxe3 {[%emt 0:01:19]} 26. Kxe3 {[%emt 0:00:12]} Qg3+ {[%emt 0:01:41]} 27. Ke2 {[%emt 0:00:15]} Bg4+ {[%emt 0:00:06]} 28. Kf1 {[%emt 0:00:45]} Re8 {[%emt 0:00:19]} 0-1

[Event "CZE-ch Open 2019"]
[Site "Ostrava"]
[Date "2019.05.01"]
[Round "5.2"]
[White "Hracek, Zbynek"]
[Black "Simacek, Pavel"]
[Result "1-0"]
[ECO "B73"]
[WhiteElo "2585"]
[BlackElo "2471"]
[Annotator "ChessBase"]
[PlyCount "79"]
[EventDate "2019.04.27"]
[EventType "swiss"]
[EventCountry "CZE"]
[SourceTitle "playchess.com"]
[Source "ChessBase"]
[SourceQuality "1"]
[TimeControl "40/5400+30:1800+30"]

1. e4 {[%emt 0:00:00]} c5 {[%emt 0:00:00]} 2. Nf3 {[%emt 0:00:00]} g6 {[%emt 0:00:00]} 3. d4 {[%emt 0:00:56]} cxd4 {[%emt 0:00:02]} 4. Nxd4 {[%emt 0:00:02]} Nf6 {[%emt 0:00:04]} 5. Nc3 {[%emt 0:00:07]} d6 {[%emt 0:00:27]} 6. Be2 {[%emt 0:03:59]} Bg7 {[%emt 0:00:50]} 7. O-O {[%emt 0:00:06]} O-O {[%emt 0:00:49]} 8. Be3 {[%emt 0:01:17]} Nc6 {[%emt 0:01:13]} 9. Qd2 {[%emt 0:00:22]} Ng4 {[%emt 0:06:51]} 10. Bxg4 {[%emt 0:00:06]} Bxg4 {[%emt 0:00:02]} 11. Nd5 {[%emt 0:00:17]} Be6 {[%emt 0:13:43]} 12. c4 {[%emt 0:07:19]} Bxd5 {[%emt 0:11:33]} 13. exd5 {[%emt 0:00:48]} Nxd4 {[%emt 0:00:31]} 14. Bxd4 {[%emt 0:00:02]} Bxd4 {[%emt 0:00:05]} 15. Qxd4 {[%emt 0:00:05]} Qd7 {[%emt 0:00:05]} 16. Rfe1 {[%emt 0:02:55]} Rfe8 {[%emt 0:00:04]} 17. a4 {[%emt 0:05:41]} a6 {[%emt 0:06:08]} 18. h4 {[%emt 0:04:07]} h5 {[%emt 0:01:10]} 19. b3 {[%emt 0:07:54]} e5 {[%emt 0:01:20]} 20. dxe6 {[%emt 0:00:11]} Rxe6 {[%emt 0:00:04]} 21. Rxe6 {[%emt 0:05:53]} Qxe6 {[%emt 0:00:04]} 22. Rd1 {[%emt 0:00:05]} Rd8 {[%emt 0:00:15]} 23. g3 {[%emt 0:09:18]} Rd7 {[%emt 0:35:22]} 24. Kg2 {[%emt 0:06:26]} Qg4 {[%emt 0:05:17]} 25. Qd5 {[%emt 0:03:24]} Qe6 {[%emt 0:00:05]} 26. Qf3 {[%emt 0:21:42]} Qg4 {[%emt 0:07:02]} 27. Qxg4 {[%emt 0:08:27]} hxg4 {[%emt 0:00:06]} 28. Rd4 {[%emt 0:00:02]} f5 {[%emt 0:00:04]} 29. f3 {[%emt 0:00:03]} gxf3+ {[%emt 0:05:27]} 30. Kxf3 {[%emt 0:01:42]} Kf7 {[%emt 0:03:10]} 31. Kf4 {[%emt 0:00:28]} Re7 {[%emt 0:00:11]} 32. Rxd6 {[%emt 0:00:23]} Re4+ {[%emt 0:00:48]} 33. Kf3 {[%emt 0:00:01]} b5 {[%emt 0:00:09]} 34. cxb5 {[%emt 0:01:53]} axb5 {[%emt 0:00:08]} 35. a5 {[%emt 0:00:03]} Rb4 {[%emt 0:01:36]} 36. Rd3 {[%emt 0:00:08]} Re4 {[%emt 0:00:03]} 37. a6 {[%emt 0:01:05]} Re1 {[%emt 0:00:28]} 38. Rd8 {[%emt 0:02:22]} Ra1 {[%emt 0:00:16]} 39. Ra8 {[%emt 0:00:27]} Ra3 {[%emt 0:02:35]} 40. a7 {[%emt 0:00:12]} 1-0

[Event "CZE-ch Open 2019"]
[Site "Ostrava"]
[Date "2019.05.01"]
[Round "5.4"]
[White "Babula, Vlastimil"]
[Black "Pulpan, Jakub"]
[Result "1-0"]
[ECO "D41"]
[WhiteElo "2549"]
[BlackElo "2418"]
[Annotator "RC"]
[PlyCount "56"]
[EventDate "2019.04.27"]
[EventType "swiss"]
[EventCountry "CZE"]
[SourceTitle "playchess.com"]
[Source "ChessBase"]
[SourceQuality "1"]
[TimeControl "40/5400+30:1800+30"]

1. d4 {[%emt 0:00:00]} Nf6 {[%emt 0:00:00]} 2. c4 {[%emt 0:00:00]} e6 {[%emt 0:00:30]} 3. Nf3 {[%emt 0:00:16]} d5 {[%emt 0:00:53]} 4. Nc3 {[%emt 0:00:29]} c5 {[%emt 0:00:47]} 5. cxd5 {[%emt 0:00:32]} Nxd5 {[%emt 0:00:27]} 6. e4 {[%emt 0:00:34]} Nxc3 {[%emt 0:00:08]} 7. bxc3 {[%emt 0:00:08]} cxd4 {[%emt 0:00:13]} 8. cxd4 {[%emt 0:00:12]} Bb4+ {[%emt 0:00:11]} 9. Bd2 {[%emt 0:00:10]} Bxd2+ {[%emt 0:00:08]} 10. Qxd2 {[%emt 0:00:09]} O-O {[%emt 0:00:40]} 11. Bc4 {[%emt 0:01:24]} Nd7 {[%emt 0:00:28]} 12. O-O {[%emt 0:00:33]} b6 {[%emt 0:00:49]} 13. Rad1 {[%emt 0:00:43]} Bb7 {[%emt 0:00:19]} 14. Rfe1 {[%emt 0:00:22]} Rc8 {[%emt 0:00:57]} 15. Bb3 {[%emt 0:00:34]} Re8 {[%emt 0:00:55]} 16. h3 {[%emt 0:01:11]} Nf6 {[%emt 0:01:02]} 17. Qf4 {[%emt 0:01:31]} Nh5 {[%emt 0:00:47]} 18. Qh2 {[%emt 0:01:10]} h6 {[%emt 0:00:42]} 19. h4 {[%emt 0:00:45]} b5 {[%emt 0:21:51]} 20. Ne5 {[%emt 0:11:51]} a5 {[%emt 0:14:03]} 21. d5 {[%emt 0:26:09]} exd5 {[%emt 0:04:58]} 22. Bxd5 {[%emt 0:14:03]} Bxd5 {[%emt 0:01:06]} 23. exd5 {[%emt 0:01:27]} Qf6 {[%emt 0:16:29]} 24. d6 {[%emt 0:10:15]} Rcd8 {[%emt 0:03:24]} 25. d7 {[%emt 0:00:43]} Re6 {[%emt 0:15:09]} 26. Ng4 {[%emt 0:03:00]} Rxe1+ {[%emt 0:06:20]} 27. Rxe1 {[%emt 0:00:05]} Qd4 {[%emt 0:05:47]} 28. Qe5 {[%emt 0:06:19]} Qxg4 {[%emt 0:00:00]} 1-0

[Event "CZE-ch Open 2019"]
[Site "Ostrava"]
[Date "2019.05.01"]
[Round "5.5"]
[White "Plat, Vojtech"]
[Black "Miesbauer, Jan"]
[Result "1-0"]
[ECO "A10"]
[WhiteElo "2535"]
[BlackElo "2402"]
[Annotator "ChessBase"]
[PlyCount "93"]
[EventDate "2019.04.27"]
[EventType "swiss"]
[EventCountry "CZE"]
[SourceTitle "playchess.com"]
[Source "ChessBase"]
[SourceQuality "1"]
[TimeControl "40/5400+30:1800+30"]

1. c4 {[%emt 0:00:00]} g6 {[%emt 0:00:00]} 2. Nc3 {[%emt 0:00:00]} c5 {[%emt 0:00:54]} 3. Nf3 {[%emt 0:00:32]} Bg7 {[%emt 0:00:12]} 4. e3 {[%emt 0:00:10]} Nf6 {[%emt 0:00:58]} 5. d4 {[%emt 0:00:06]} cxd4 {[%emt 0:00:15]} 6. exd4 {[%emt 0:00:04]} O-O {[%emt 0:01:09]} 7. Be2 {[%emt 0:01:52]} d5 {[%emt 0:01:50]} 8. O-O {[%emt 0:02:15]} Nc6 {[%emt 0:01:28]} 9. h3 {[%emt 0:00:24]} Be6 {[%emt 0:03:13]} 10. Ng5 {[%emt 0:02:49]} Bf5 {[%emt 0:05:23]} 11. Be3 {[%emt 0:07:30]} dxc4 {[%emt 0:08:48]} 12. Bxc4 {[%emt 0:00:32]} Rc8 {[%emt 0:02:42]} 13. Rc1 {[%emt 0:06:07]} Na5 {[%emt 0:01:11]} 14. Be2 {[%emt 0:00:30]} Nd5 {[%emt 0:21:18]} 15. Nxd5 Qxd5 {[%emt 0:00:08]} 16. Qa4 {[%emt 0:01:27]} Rxc1 {[%emt 0:02:53]} 17. Rxc1 {[%emt 0:00:09]} Nc6 {[%emt 0:12:33]} 18. Bf3 {[%emt 0:04:11]} Qd7 {[%emt 0:00:14]} 19. Bxc6 {[%emt 0:00:11]} bxc6 {[%emt 0:00:05]} 20. Qxc6 {[%emt 0:00:37]} Rc8 {[%emt 0:00:47]} 21. Qxc8+ {[%emt 0:00:06]} Qxc8 {[%emt 0:00:04]} 22. Rxc8+ {[%emt 0:00:03]} Bxc8 {[%emt 0:00:05]} 23. Ne4 {[%emt 0:00:14]} f5 {[%emt 0:03:06]} 24. Nc3 {[%emt 0:04:53]} a6 {[%emt 0:06:58]} 25. f4 {[%emt 0:00:16]} e6 {[%emt 0:01:42]} 26. Kf2 {[%emt 0:00:47]} Bf8 {[%emt 0:00:57]} 27. a3 {[%emt 0:00:17]} Bd7 {[%emt 0:00:54]} 28. Bd2 {[%emt 0:00:44]} Bd6 {[%emt 0:01:43]} 29. g3 {[%emt 0:00:49]} Kf7 {[%emt 0:00:52]} 30. Na2 {[%emt 0:03:10]} h6 {[%emt 0:01:20]} 31. h4 {[%emt 0:00:12]} Bb5 {[%emt 0:00:53]} 32. Bb4 {[%emt 0:00:46]} Bc7 {[%emt 0:00:21]} 33. Nc3 {[%emt 0:00:41]} Bc6 {[%emt 0:00:32]} 34. Nd1 {[%emt 0:03:04]} Bd8 {[%emt 0:02:53]} 35. Bd2 {[%emt 0:00:55]} Bb6 {[%emt 0:02:04]} 36. Be3 {[%emt 0:00:36]} Ke7 {[%emt 0:00:56]} 37. d5 {[%emt 0:00:38]} Bxe3+ {[%emt 0:01:13]} 38. Nxe3 {[%emt 0:01:59]} exd5 {[%emt 0:00:08]} 39. Nc2 {[%emt 0:00:05]} d4 {[%emt 0:06:21]} 40. Nxd4 {[%emt 0:00:06]} Bd7 {[%emt 0:01:38]} 41. Ke3 {[%emt 0:31:06]} Kd6 {[%emt 0:30:12]} 42. Nf3 {[%emt 0:02:04]} Kd5 {[%emt 0:00:21]} 43. b3 {[%emt 0:01:04]} Be8 {[%emt 0:00:43]} 44. Ne1 {[%emt 0:00:26]} Bd7 {[%emt 0:00:00]} 45. Nd3 {[%emt 0:00:00]} a5 {[%emt 0:00:00]} 46. Ne5 {[%emt 0:00:00]} Be8 {[%emt 0:00:00]} 47. Nc4 {[%emt 0:00:00]} 1-0

[Event "CZE-ch Open 2019"]
[Site "Ostrava"]
[Date "2019.05.01"]
[Round "5.6"]
[White "Rubes, Jan"]
[Black "Kraus, Tomas"]
[Result "0-1"]
[ECO "B24"]
[WhiteElo "2345"]
[BlackElo "2456"]
[Annotator "ChessBase"]
[PlyCount "64"]
[EventDate "2019.04.27"]
[EventType "swiss"]
[EventCountry "CZE"]
[SourceTitle "playchess.com"]
[Source "ChessBase"]
[SourceQuality "1"]
[TimeControl "40/5400+30:1800+30"]

1. e4 {[%emt 0:00:00]} c5 {[%emt 0:00:00]} 2. Nc3 {[%emt 0:00:00]} Nc6 {[%emt 0:05:30]} 3. Nf3 {[%emt 0:00:00]} e5 {[%emt 0:02:46]} 4. Bc4 {[%emt 0:00:00]} Be7 {[%emt 0:01:07]} 5. d3 {[%emt 0:01:37]} Nf6 {[%emt 0:04:10]} 6. O-O {[%emt 0:00:22]} O-O {[%emt 0:00:51]} 7. a4 {[%emt 0:01:59]} d6 {[%emt 0:01:27]} 8. h3 {[%emt 0:00:10]} Be6 {[%emt 0:04:35]} 9. Ng5 {[%emt 0:19:39]} Bd7 {[%emt 0:22:48]} 10. f4 {[%emt 0:00:39]} exf4 {[%emt 0:00:05]} 11. Bxf4 {[%emt 0:01:30]} h6 {[%emt 0:00:25]} 12. Nf3 {[%emt 0:05:25]} Be6 {[%emt 0:00:09]} 13. Qd2 {[%emt 0:06:55]} d5 {[%emt 0:02:30]} 14. exd5 {[%emt 0:08:43]} Nxd5 {[%emt 0:00:04]} 15. Rae1 {[%emt 0:05:56]} Rc8 {[%emt 0:11:08]} 16. Bxh6 {[%emt 0:09:38]} Nxc3 {[%emt 0:10:38]} 17. Bxe6 {[%emt 0:02:19]} fxe6 {[%emt 0:00:20]} 18. bxc3 {[%emt 0:00:10]} gxh6 {[%emt 0:00:47]} 19. Rxe6 {[%emt 0:00:42]} Bg5 {[%emt 0:02:05]} 20. Qe2 {[%emt 0:05:44]} Qd5 {[%emt 0:01:12]} 21. h4 {[%emt 0:23:04]} Bf6 {[%emt 0:02:54]} 22. c4 {[%emt 0:03:20]} Qh5 {[%emt 0:03:50]} 23. Qe4 {[%emt 0:00:59]} Bg7 {[%emt 0:04:39]} 24. g4 {[%emt 0:02:14]} Qf7 {[%emt 0:00:13]} 25. Kh2 {[%emt 0:00:53]} Nd4 {[%emt 0:02:57]} 26. Nxd4 {[%emt 0:00:17]} Qxf1 {[%emt 0:00:40]} 27. Nf5 {[%emt 0:00:04]} Qf2+ {[%emt 0:06:08]} 28. Kh3 {[%emt 0:00:10]} Rc7 {[%emt 0:01:26]} 29. Qd5 {[%emt 0:01:27]} Kh8 {[%emt 0:00:49]} 30. Qd6 {[%emt 0:00:27]} Rxf5 {[%emt 0:01:42]} 31. gxf5 {[%emt 0:00:36]} Qxf5+ {[%emt 0:00:27]} 32. Kh2 {[%emt 0:00:06]} Rf7 {[%emt 0:00:39]} 0-1

[Event "CZE-ch Open 2019"]
[Site "Ostrava"]
[Date "2019.05.01"]
[Round "5.8"]
[White "Michalik, Peter"]
[Black "Hausner, Ivan"]
[Result "1-0"]
[ECO "C03"]
[WhiteElo "2577"]
[BlackElo "2349"]
[Annotator "ChessBase"]
[PlyCount "53"]
[EventDate "2019.04.27"]
[EventType "swiss"]
[EventCountry "CZE"]
[SourceTitle "playchess.com"]
[Source "ChessBase"]
[SourceQuality "1"]
[TimeControl "40/5400+30:1800+30"]

1. e4 {[%emt 0:00:00]} e6 {[%emt 0:00:00]} 2. d4 {[%emt 0:00:00]} d5 {[%emt 0:00:00]} 3. Nd2 {[%emt 0:00:00]} Be7 {[%emt 0:00:00]} 4. Ngf3 {[%emt 0:00:00]} Nf6 {[%emt 0:00:00]} 5. e5 {[%emt 0:00:00]} Nfd7 {[%emt 0:00:00]} 6. Bd3 {[%emt 0:00:04]} c5 {[%emt 0:00:03]} 7. c3 {[%emt 0:00:06]} Nc6 {[%emt 0:00:05]} 8. O-O {[%emt 0:00:06]} a5 {[%emt 0:00:07]} 9. a4 {[%emt 0:00:06]} Qb6 {[%emt 0:01:06]} 10. dxc5 {[%emt 0:00:17]} Qc7 {[%emt 0:00:11]} 11. Nb3 {[%emt 0:02:07]} Ndxe5 {[%emt 0:00:13]} 12. Nxe5 {[%emt 0:00:42]} Qxe5 {[%emt 0:00:25]} 13. f4 {[%emt 0:01:06]} Qf6 {[%emt 0:00:34]} 14. Be3 {[%emt 0:04:01]} O-O {[%emt 0:00:56]} 15. Qc2 {[%emt 0:08:27]} g6 {[%emt 0:00:06]} 16. Bb5 {[%emt 0:01:24]} e5 {[%emt 0:02:59]} 17. Rae1 {[%emt 0:05:00]} Bf5 {[%emt 0:05:09]} 18. fxe5 {[%emt 0:01:57]} Qxe5 {[%emt 0:01:23]} 19. Qf2 {[%emt 0:02:05]} Qg7 {[%emt 0:03:51]} 20. Bxc6 {[%emt 0:03:42]} bxc6 {[%emt 0:00:06]} 21. Nd4 {[%emt 0:00:04]} Bd7 {[%emt 0:01:26]} 22. Bh6 {[%emt 0:00:21]} Qxh6 {[%emt 0:00:08]} 23. Rxe7 {[%emt 0:00:05]} Be6 {[%emt 0:04:47]} 24. Nxc6 {[%emt 0:00:22]} Qg5 {[%emt 0:00:59]} 25. h4 {[%emt 0:00:27]} Qg4 {[%emt 0:01:10]} 26. Qf6 {[%emt 0:03:20]} Bf5 {[%emt 0:04:40]} 27. Ne5 {[%emt 0:05:18]} 1-0

[Event "CZE-ch Open 2019"]
[Site "Ostrava"]
[Date "2019.05.01"]
[Round "5.9"]
[White "Krejci, Jan"]
[Black "Jasny, Stanislav"]
[Result "1-0"]
[ECO "A10"]
[WhiteElo "2588"]
[BlackElo "2347"]
[Annotator "ChessBase"]
[PlyCount "83"]
[EventDate "2019.04.27"]
[EventType "swiss"]
[EventCountry "CZE"]
[SourceTitle "playchess.com"]
[Source "ChessBase"]
[SourceQuality "1"]
[TimeControl "40/5400+30:1800+30"]

1. c4 g6 2. d4 Bg7 3. g3 d6 4. Bg2 Nd7 5. Nf3 e5 6. Nc3 Ne7 7. h4 h6 8. e4 exd4 9. Nxd4 Ne5 10. O-O O-O 11. Qe2 N7c6 12. Nc2 Bg4 13. f3 Be6 14. Nd5 Na5 15. b3 a6 16. Be3 b5 17. Qd2 Naxc4 18. bxc4 Nxc4 19. Qd3 Nxe3 20. Ncxe3 Bxa1 21. Rxa1 c6 22. Nf4 Qf6 23. Rc1 Bd7 24. Rd1 Rfd8 25. Qa3 Be8 26. Ng4 Qg7 27. Rxd6 Qf8 28. Nf6+ Kh8 29. e5 Rxd6 30. exd6 Qg7 31. Qb2 Bd7 32. Nd3 Rd8 33. Qe5 Be6 34. f4 Rxd6 35. Qxd6 Qxf6 36. Ne5 Qf5 37. Nxc6 Qb1+ 38. Kh2 Qxa2 39. Qf8+ Kh7 40. Ne7 f5 41. Qf6 Bf7 42. h5 1-0